[Event "Nordic Youth-ch A 2019"]
[Site "Borgarnes"]
[Date "2019.02.16"]
[Round "3.3"]
[White "Keinanen, Toivo"]
[Black "Heimisson, Hilmir Freyr"]
[Result "0-1"]
[ECO "A40"]
[WhiteElo "2403"]
[BlackElo "2394"]
[Annotator "NA"]
[PlyCount "65"]
[EventDate "2019.02.03"]
[EventType "swiss"]
[EventCountry "ISL"]
[SourceTitle "playchess.com"]
[Source "ChessBase"]
[SourceQuality "1"]
[TimeControl "5400+30"]

1. d4 {[%emt 0:00:00]} Nf6 {[%emt 0:00:13]} 2. c4 {[%emt 0:00:00]} e6 {[%emt 0:00:33]} 3. g3 {[%emt 0:00:00]} c5 {[%emt 0:00:04]} 4. Nf3 {[%emt 0:00:00]} cxd4 {[%emt 0:00:06]} 5. Nxd4 {[%emt 0:00:00]} d5 {[%emt 0:00:05]} 6. Bg2 {[%emt 0:03:05]} e5 {[%emt 0:00:11]} 7. Nf3 {[%emt 0:01:38]} d4 {[%emt 0:00:06]} 8. O-O {[%emt 0:00:28]} Nc6 {[%emt 0:00:03]} 9. e3 {[%emt 0:00:44]} Be7 {[%emt 0:00:39]} 10. exd4 {[%emt 0:00:16]} exd4 {[%emt 0:00:06]} 11. Bf4 {[%emt 0:01:23]} Be6 {[%emt 0:00:20]} 12. Ne5 {[%emt 0:07:56]} Rc8 {[%emt 0:00:02]} 13. Re1 {[%emt 0:06:13]} O-O {[%emt 0:00:59]} 14. Nd2 {[%emt 0:01:47]} Qb6 {[%emt 0:09:56]} 15. a3 {[%emt 0:05:42]} Nxe5 {[%emt 0:26:58]} 16. Rxe5 {[%emt 0:06:00]} Qxb2 {[%emt 0:00:14]} 17. Rb5 {[%emt 0:19:04]} Qc3 {[%emt 0:00:26]} 18. Rxb7 {[%emt 0:04:31]} Rfe8 {[%emt 0:01:08]} 19. Rxa7 {[%emt 0:04:58]} Bg4 {[%emt 0:05:32]} 20. Bf3 {[%emt 0:05:25]} Bxf3 {[%emt 0:03:26]} 21. Nxf3 {[%emt 0:00:20]} Bc5 {[%emt 0:00:26]} 22. Ra4 {[%emt 0:02:05]} Ne4 {[%emt 0:08:49]} 23. Nd2 {[%emt 0:18:32]} d3 {[%emt 0:09:03]} 24. Nxe4 {[%emt 0:00:25]} Rxe4 {[%emt 0:00:42]} 25. Rc1 {[%emt 0:00:39]} Qb2 {[%emt 0:05:25]} 26. Qf3 {[%emt 0:05:38]} d2 {[%emt 0:10:29]} 27. Rd1 {[%emt 0:00:35]} Qc2 {[%emt 0:03:06]} 28. Ra8 {[%emt 0:06:05]} Rxa8 {[%emt 0:00:59]} 29. Rxd2 {[%emt 0:00:10]} Qb1+ {[%emt 0:00:25]} 30. Rd1 {[%emt 0:00:11]} Re1+ {[%emt 0:00:16]} 31. Kg2 {[%emt 0:00:08]} Qxd1 {[%emt 0:00:08]} 32. Qxa8+ {[%emt 0:00:08]} Bf8 {[%emt 0:00:03]} 33. h4 {[%emt 0:00:30]} 0-1

[Event "Nordic Youth-ch A 2019"]
[Site "Borgarnes"]
[Date "2019.02.16"]
[Round "3.4"]
[White "Mejlvang, Magnus"]
[Black "Fossan, Andreas"]
[Result "0-1"]
[ECO "A45"]
[WhiteElo "1880"]
[BlackElo "2025"]
[Annotator "NA"]
[PlyCount "90"]
[EventDate "2019.02.03"]
[EventType "swiss"]
[EventCountry "ISL"]
[SourceTitle "playchess.com"]
[Source "ChessBase"]
[SourceQuality "1"]
[TimeControl "5400+30"]

1. d4 {[%emt 0:00:00]} Nf6 {[%emt 0:01:02]} 2. Bf4 {[%emt 0:00:00]} e6 {[%emt 0:00:33]} 3. Nf3 {[%emt 0:00:31]} c5 {[%emt 0:00:27]} 4. e3 {[%emt 0:00:26]} Be7 {[%emt 0:03:01]} 5. Nbd2 {[%emt 0:04:29]} O-O {[%emt 0:03:51]} 6. Bd3 {[%emt 0:02:47]} cxd4 {[%emt 0:04:02]} 7. exd4 {[%emt 0:00:19]} b6 {[%emt 0:00:14]} 8. c3 {[%emt 0:01:58]} Bb7 {[%emt 0:00:16]} 9. Qc2 {[%emt 0:05:15]} d6 {[%emt 0:02:02]} 10. Rg1 {[%emt 0:20:46]} Nbd7 {[%emt 0:06:40]} 11. g4 {[%emt 0:05:09]} g6 {[%emt 0:02:00]} 12. O-O-O {[%emt 0:03:51]} Rc8 {[%emt 0:02:47]} 13. h4 {[%emt 0:08:36]} Nd5 {[%emt 0:06:20]} 14. Bh6 {[%emt 0:00:15]} Nb4 {[%emt 0:01:09]} 15. Qb1 {[%emt 0:00:02]} Bd5 {[%emt 0:15:41]} 16. Ne4 {[%emt 0:17:12]} Bxa2 {[%emt 0:04:45]} 17. Qa1 {[%emt 0:00:07]} Nxd3+ {[%emt 0:05:27]} 18. Rxd3 {[%emt 0:00:03]} Bc4 {[%emt 0:00:30]} 19. Re3 {[%emt 0:03:48]} Re8 {[%emt 0:00:56]} 20. h5 {[%emt 0:04:47]} e5 {[%emt 0:09:39]} 21. hxg6 {[%emt 0:01:17]} fxg6 {[%emt 0:00:56]} 22. Rd1 {[%emt 0:02:02]} Qc7 {[%emt 0:05:38]} 23. dxe5 {[%emt 0:08:39]} Nxe5 {[%emt 0:01:02]} 24. Nxe5 {[%emt 0:01:27]} dxe5 {[%emt 0:00:18]} 25. Nd2 {[%emt 0:01:57]} Red8 {[%emt 0:04:09]} 26. Rde1 {[%emt 0:00:57]} Bf7 {[%emt 0:05:34]} 27. Rxe5 {[%emt 0:02:15]} Bf6 {[%emt 0:00:17]} 28. R5e3 {[%emt 0:01:01]} Qd7 {[%emt 0:03:05]} 29. Ne4 {[%emt 0:00:21]} Bh8 {[%emt 0:02:37]} 30. Bg5 {[%emt 0:00:59]} Bb3 {[%emt 0:02:35]} 31. Bxd8 {[%emt 0:02:44]} Rxd8 {[%emt 0:00:01]} 32. Nd6 {[%emt 0:00:13]} Qxd6 {[%emt 0:00:55]} 33. Re8+ {[%emt 0:00:01]} Rxe8 {[%emt 0:00:29]} 34. Rxe8+ {[%emt 0:00:02]} Kf7 {[%emt 0:00:16]} 35. Re1 {[%emt 0:00:44]} Qf4+ {[%emt 0:01:54]} 36. Re3 {[%emt 0:00:03]} Qa4 {[%emt 0:04:26]} 37. Rf3+ {[%emt 0:02:39]} Kg8 {[%emt 0:01:12]} 38. Qb1 {[%emt 0:00:01]} Qxg4 {[%emt 0:01:25]} 39. Qd3 {[%emt 0:00:01]} Qg1+ {[%emt 0:00:44]} 40. Kd2 {[%emt 0:00:01]} Qd1+ {[%emt 0:00:29]} 41. Ke3 {[%emt 0:00:01]} Qxd3+ {[%emt 0:00:16]} 42. Kxd3 {[%emt 0:00:02]} b5 {[%emt 0:00:42]} 43. Rf4 {[%emt 0:01:08]} a5 {[%emt 0:00:32]} 44. Rf3 {[%emt 0:01:49]} a4 {[%emt 0:00:15]} 45. Ke4 {[%emt 0:00:41]} Bg7 {[%emt 0:00:12] Kd4} 0-1

[Event "Nordic Youth-ch A 2019"]
[Site "Borgarnes"]
[Date "2019.02.16"]
[Round "4.1"]
[White "Kristensen, Bjarke Hautop"]
[Black "Thorgeirsson, Jon Kristinn"]
[Result "1/2-1/2"]
[ECO "A35"]
[WhiteElo "2212"]
[BlackElo "2306"]
[Annotator "ChessBase"]
[PlyCount "85"]
[EventDate "2019.02.03"]
[EventType "swiss"]
[EventCountry "ISL"]
[SourceTitle "playchess.com"]
[Source "ChessBase"]
[SourceQuality "1"]
[TimeControl "5400+30"]

1. Nf3 {[%emt 0:00:00]} c5 {[%emt 0:00:00]} 2. c4 {[%emt 0:00:00]} Nc6 {[%emt 0:00:25]} 3. Nc3 {[%emt 0:00:00]} Nf6 {[%emt 0:00:07]} 4. g3 {[%emt 0:00:00]} e6 {[%emt 0:00:10]} 5. Bg2 {[%emt 0:00:34]} Qc7 {[%emt 0:11:38]} 6. O-O {[%emt 0:00:34]} b6 {[%emt 0:00:31]} 7. e3 {[%emt 0:01:20]} Bb7 {[%emt 0:02:34]} 8. b3 {[%emt 0:00:47]} a6 {[%emt 0:00:54]} 9. Bb2 {[%emt 0:00:35]} Be7 {[%emt 0:00:40]} 10. Qe2 d6 11. Ne1 {[%emt 0:17:30]} h5 {[%emt 0:08:04]} 12. h3 {[%emt 0:02:03]} h4 {[%emt 0:01:09]} 13. g4 {[%emt 0:00:10]} O-O-O {[%emt 0:04:36]} 14. Nc2 {[%emt 0:03:19]} Ne5 {[%emt 0:06:24]} 15. f4 {[%emt 0:21:36]} Ng6 {[%emt 0:02:38]} 16. d4 {[%emt 0:02:42]} Nd7 {[%emt 0:19:28]} 17. a4 {[%emt 0:16:13]} Rhe8 {[%emt 0:06:28]} 18. Ra2 {[%emt 0:04:51]} Bxg2 {[%emt 0:02:44]} 19. Qxg2 {[%emt 0:00:21]} Qb7 {[%emt 0:00:17]} 20. d5 {[%emt 0:11:11]} a5 {[%emt 0:03:38]} 21. g5 {[%emt 0:03:10]} Nb8 {[%emt 0:08:35]} 22. Qg4 {[%emt 0:01:51]} Qd7 {[%emt 0:00:54]} 23. Qg2 {[%emt 0:02:54]} Bf8 {[%emt 0:00:38]} 24. Na3 {[%emt 0:01:02]} Ne7 {[%emt 0:00:52]} 25. e4 {[%emt 0:01:20]} Ng6 {[%emt 0:01:11]} 26. Raa1 {[%emt 0:00:31]} Na6 {[%emt 0:00:27]} 27. Rad1 {[%emt 0:00:35]} e5 {[%emt 0:01:35]} 28. f5 {[%emt 0:00:13]} Nf4 {[%emt 0:00:06]} 29. Qg4 {[%emt 0:01:08]} g6 {[%emt 0:00:28]} 30. Bc1 {[%emt 0:00:26]} f6 {[%emt 0:02:16]} 31. Rxf4 {[%emt 0:06:48]} exf4 {[%emt 0:00:22]} 32. Bxf4 {[%emt 0:00:01]} gxf5 {[%emt 0:00:23]} 33. exf5 {[%emt 0:00:13]} fxg5 {[%emt 0:00:19]} 34. Bxg5 {[%emt 0:00:09]} Bg7 {[%emt 0:10:25]} 35. Bxd8 {[%emt 0:00:40]} Bxc3 {[%emt 0:00:20]} 36. Bxh4 {[%emt 0:00:39]} Qf7 {[%emt 0:01:11]} 37. Nb5 {[%emt 0:00:57]} Be5 {[%emt 0:00:11]} 38. Bg5 {[%emt 0:00:18]} Rg8 {[%emt 0:01:44]} 39. h4 {[%emt 0:00:04]} Nb4 {[%emt 0:00:49]} 40. Kh1 {[%emt 0:00:42]} Qd7 {[%emt 0:01:03]} 41. Rg1 {[%emt 0:00:54]} Nd3 {[%emt 0:00:35]} 42. Qf3 {[%emt 0:00:23]} Qh7 {[%emt 0:00:07]} 43. Qxd3 {[%emt 0:01:52]} 1/2-1/2

[Event "Nordic Youth-ch A 2019"]
[Site "Borgarnes"]
[Date "2019.02.16"]
[Round "4.3"]
[White "Fossan, Andreas"]
[Black "Crevatin, Leo"]
[Result "1/2-1/2"]
[ECO "D30"]
[WhiteElo "2025"]
[BlackElo "2190"]
[Annotator "NA"]
[PlyCount "80"]
[EventDate "2019.02.03"]
[EventType "swiss"]
[EventCountry "ISL"]
[SourceTitle "playchess.com"]
[Source "ChessBase"]
[SourceQuality "1"]
[TimeControl "5400+30"]

1. d4 {[%emt 0:00:00]} d5 {[%emt 0:00:00]} 2. c4 {[%emt 0:00:00]} c6 {[%emt 0:00:00]} 3. Nf3 {[%emt 0:00:23]} e6 {[%emt 0:00:00]} 4. e3 {[%emt 0:00:11]} Nf6 {[%emt 0:04:53]} 5. Nbd2 {[%emt 0:05:22]} c5 {[%emt 0:01:36]} 6. cxd5 exd5 {[%emt 0:00:02]} 7. dxc5 {[%emt 0:03:56]} Bxc5 {[%emt 0:03:43]} 8. a3 a5 9. Bb5+ {[%emt 0:09:21]} Bd7 {[%emt 0:03:21]} 10. Bxd7+ {[%emt 0:05:07]} Qxd7 {[%emt 0:01:23]} 11. O-O {[%emt 0:01:18]} O-O {[%emt 0:01:03]} 12. Nb3 {[%emt 0:01:03]} Bb6 {[%emt 0:01:15]} 13. Nbd4 {[%emt 0:01:51]} Nc6 {[%emt 0:00:18]} 14. b3 {[%emt 0:01:59]} Rac8 {[%emt 0:03:23]} 15. Bb2 {[%emt 0:02:09]} Ne4 {[%emt 0:04:41]} 16. Nxc6 {[%emt 0:09:23]} bxc6 {[%emt 0:01:45]} 17. b4 {[%emt 0:01:44]} axb4 {[%emt 0:04:15]} 18. axb4 {[%emt 0:00:49]} Qb7 {[%emt 0:06:02]} 19. Nd4 {[%emt 0:09:03]} f6 {[%emt 0:16:01]} 20. Nf5 {[%emt 0:12:48]} Rb8 {[%emt 0:07:32]} 21. Rc1 {[%emt 0:03:42]} Kh8 {[%emt 0:03:27]} 22. Kh1 {[%emt 0:05:37]} Qd7 {[%emt 0:02:49]} 23. Nd4 {[%emt 0:01:57]} Rfc8 {[%emt 0:03:55]} 24. Ba1 {[%emt 0:04:03]} Bd8 {[%emt 0:04:33]} 25. f3 {[%emt 0:07:21]} Nd6 {[%emt 0:01:11]} 26. Bc3 {[%emt 0:02:14]} Be7 {[%emt 0:01:19]} 27. Re1 {[%emt 0:02:15]} Nc4 {[%emt 0:02:49]} 28. Nc2 {[%emt 0:00:41]} Bd6 {[%emt 0:05:21]} 29. Qe2 {[%emt 0:02:40]} Be5 {[%emt 0:00:46]} 30. Nd4 {[%emt 0:01:23]} Bxd4 {[%emt 0:01:06]} 31. Bxd4 {[%emt 0:01:19]} Rxb4 {[%emt 0:01:11]} 32. Red1 {[%emt 0:01:08]} Qe7 {[%emt 0:02:48]} 33. Re1 {[%emt 0:03:36]} Rbb8 {[%emt 0:01:37]} 34. e4 {[%emt 0:00:58]} c5 {[%emt 0:01:01]} 35. Bg1 {[%emt 0:00:32]} Nb6 {[%emt 0:06:03]} 36. exd5 {[%emt 0:00:25]} Qxe2 37. Rxe2 Nxd5 {[%emt 0:00:44]} 38. Rxc5 {[%emt 0:00:57]} Rxc5 {[%emt 0:00:12]} 39. Bxc5 {[%emt 0:00:08]} Rb1+ {[%emt 0:00:14]} 40. Bg1 {[%emt 0:00:15]} h5 {[%emt 0:01:00]} 1/2-1/2

[Event "Nordic Youth-ch A 2019"]
[Site "Borgarnes"]
[Date "2019.02.16"]
[Round "4.4"]
[White "Skaale, Janus"]
[Black "Keinanen, Toivo"]
[Result "0-1"]
[ECO "B15"]
[WhiteElo "1765"]
[BlackElo "2403"]
[Annotator "ChessBase"]
[PlyCount "140"]
[EventDate "2019.02.03"]
[EventType "swiss"]
[EventCountry "ISL"]
[SourceTitle "playchess.com"]
[Source "ChessBase"]
[SourceQuality "1"]
[TimeControl "5400+30"]

1. e4 c6 {[%emt 0:00:40]} 2. d4 {[%emt 0:00:23]} d5 {[%emt 0:00:10]} 3. Nc3 {[%emt 0:00:26]} a6 {[%emt 0:02:54]} 4. Be3 {[%emt 0:07:35]} b5 5. Bd3 {[%emt 0:00:30]} b4 {[%emt 0:02:01]} 6. Nce2 {[%emt 0:01:12]} dxe4 {[%emt 0:00:47]} 7. Bxe4 {[%emt 0:00:58]} Nf6 {[%emt 0:00:55]} 8. Bd3 {[%emt 0:07:39]} Bg4 {[%emt 0:00:05]} 9. h3 {[%emt 0:00:56]} Bh5 10. Qd2 Nd5 {[%emt 0:02:00]} 11. Ng3 {[%emt 0:05:30]} Bg6 {[%emt 0:00:11]} 12. Nf3 {[%emt 0:00:16]} e6 {[%emt 0:00:19]} 13. Ne5 {[%emt 0:04:17]} Nd7 {[%emt 0:05:32]} 14. Nxg6 {[%emt 0:07:11]} hxg6 {[%emt 0:00:02]} 15. O-O {[%emt 0:02:30]} Be7 16. c4 {[%emt 0:03:36]} bxc3 {[%emt 0:03:39]} 17. bxc3 {[%emt 0:00:06]} O-O {[%emt 0:00:43]} 18. Rab1 {[%emt 0:07:07]} Qc7 {[%emt 0:06:26]} 19. c4 {[%emt 0:01:32]} Nxe3 {[%emt 0:00:54]} 20. Qxe3 {[%emt 0:00:32]} Rfd8 {[%emt 0:01:42]} 21. Be4 {[%emt 0:13:21]} Rac8 {[%emt 0:03:39]} 22. Rfd1 {[%emt 0:01:24]} Bd6 {[%emt 0:02:53]} 23. Ne2 {[%emt 0:01:28]} Nf6 {[%emt 0:02:34]} 24. Bf3 {[%emt 0:02:10]} Rb8 {[%emt 0:01:55]} 25. g3 {[%emt 0:06:05]} Be7 {[%emt 0:03:08]} 26. Nc3 {[%emt 0:02:27]} Rb4 {[%emt 0:02:05]} 27. Rxb4 {[%emt 0:01:09]} Bxb4 {[%emt 0:00:02]} 28. Ne4 {[%emt 0:00:17]} Be7 {[%emt 0:01:11]} 29. Nxf6+ {[%emt 0:02:53]} gxf6 {[%emt 0:03:39]} 30. d5 {[%emt 0:05:43]} cxd5 {[%emt 0:02:54]} 31. cxd5 {[%emt 0:00:03]} e5 {[%emt 0:01:19]} 32. Be2 {[%emt 0:03:53]} Bc5 {[%emt 0:01:00]} 33. Qb3 {[%emt 0:08:05]} Qa7 {[%emt 0:03:30]} 34. Rf1 {[%emt 0:00:08]} Kg7 {[%emt 0:00:48]} 35. Bc4 {[%emt 0:01:14]} Rb8 {[%emt 0:00:52]} 36. Qc2 {[%emt 0:01:10]} Bd4 {[%emt 0:01:10]} 37. Bb3 {[%emt 0:00:37]} a5 {[%emt 0:00:00]} 38. Qc6 {[%emt 0:01:39]} Rb6 {[%emt 0:02:24]} 39. Qe8 {[%emt 0:01:02]} Qc7 {[%emt 0:03:28]} 40. Kg2 {[%emt 0:01:12]} f5 {[%emt 0:01:24]} 41. Rd1 {[%emt 0:01:40]} Rd6 {[%emt 0:01:05]} 42. Qb5 {[%emt 0:00:30]} Qc3 {[%emt 0:02:50]} 43. Qd3 {[%emt 0:00:28]} Qc5 {[%emt 0:00:20]} 44. Qc4 {[%emt 0:00:04]} Bxf2 {[%emt 0:02:38]} 45. Qxc5 {[%emt 0:00:23]} Bxc5 {[%emt 0:00:01]} 46. Rc1 {[%emt 0:00:18]} Bb6 {[%emt 0:00:01]} 47. a4 {[%emt 0:01:17]} e4 {[%emt 0:01:31]} 48. Kf1 {[%emt 0:00:30]} Kf6 {[%emt 0:00:58]} 49. Ke2 {[%emt 0:00:08]} Ke5 {[%emt 0:00:25]} 50. Rc8 {[%emt 0:00:19]} g5 {[%emt 0:01:08]} 51. h4 {[%emt 0:00:44]} gxh4 {[%emt 0:00:19]} 52. gxh4 {[%emt 0:00:02]} f4 {[%emt 0:00:14]} 53. Re8+ {[%emt 0:00:37]} Kd4 {[%emt 0:00:43]} 54. Bc2 {[%emt 0:00:23]} f5 {[%emt 0:01:35]} 55. h5 {[%emt 0:00:44]} f3+ {[%emt 0:00:35]} 56. Kf1 {[%emt 0:00:18]} Kc3 {[%emt 0:03:25]} 57. Bd1 {[%emt 0:01:16]} Rxd5 {[%emt 0:00:50]} 58. Bxf3 {[%emt 0:00:22]} exf3 {[%emt 0:00:09]} 59. Re1 {[%emt 0:00:24]} Rd2 {[%emt 0:01:03]} 60. Rb1 {[%emt 0:00:31]} Bd4 {[%emt 0:00:20]} 61. Rc1+ {[%emt 0:00:09]} Kd3 {[%emt 0:00:11]} 62. Re1 {[%emt 0:00:10]} Rf2+ {[%emt 0:00:15]} 63. Kg1 {[%emt 0:00:13]} Rg2+ {[%emt 0:00:46]} 64. Kh1 {[%emt 0:00:05]} Rg4 {[%emt 0:00:07]} 65. Kh2 {[%emt 0:00:34]} f2 {[%emt 0:00:06]} 66. Rb1 {[%emt 0:00:22]} Ke2 {[%emt 0:00:13]} 67. h6 {[%emt 0:00:48]} f1=B {[%emt 0:00:34]} 68. h7 {[%emt 0:00:27]} Be5+ {[%emt 0:00:12]} 69. Kh1 {[%emt 0:00:10]} Bg2+ {[%emt 0:00:06]} 70. Kg1 {[%emt 0:00:07]} Bb7# {[%emt 0:00:05]} 0-1

[Event "Nordic Youth-ch A 2019"]
[Site "Borgarnes"]
[Date "2019.02.16"]
[Round "4.5"]
[White "Sjoberg, Isak"]
[Black "Briem, Stephan"]
[Result "1/2-1/2"]
[ECO "B01"]
[WhiteElo "2250"]
[BlackElo "1987"]
[Annotator "NA"]
[PlyCount "37"]
[EventDate "2019.02.03"]
[EventType "swiss"]
[EventCountry "ISL"]
[SourceTitle "playchess.com"]
[Source "ChessBase"]
[SourceQuality "1"]
[TimeControl "5400+30"]

1. e4 {[%emt 0:00:36]} d5 {[%emt 0:00:00]} 2. exd5 {[%emt 0:01:26]} Qxd5 {[%emt 0:00:00]} 3. Nc3 {[%emt 0:01:38]} Qd6 {[%emt 0:00:50]} 4. d4 Nf6 {[%emt 0:00:05]} 5. Bc4 {[%emt 0:06:16]} a6 6. Nf3 {[%emt 0:02:19]} b5 {[%emt 0:01:03]} 7. Bb3 {[%emt 0:01:50]} Bb7 {[%emt 0:00:50]} 8. Ne5 {[%emt 0:04:31]} e6 {[%emt 0:02:48]} 9. O-O {[%emt 0:02:06]} c5 10. Bf4 Qb6 {[%emt 0:11:39]} 11. dxc5 {[%emt 0:02:52]} Bxc5 {[%emt 0:00:39]} 12. a4 {[%emt 0:02:43]} Nc6 {[%emt 0:09:45]} 13. axb5 {[%emt 0:05:46]} axb5 {[%emt 0:01:26]} 14. Rxa8+ {[%emt 0:01:35]} Bxa8 {[%emt 0:00:15]} 15. Nd3 {[%emt 0:07:12]} Be7 {[%emt 0:17:11]} 16. Be3 {[%emt 0:04:42]} Qb8 {[%emt 0:00:46]} 17. Qe2 {[%emt 0:06:24]} O-O {[%emt 0:03:23]} 18. Nc5 {[%emt 0:11:18]} b4 {[%emt 0:05:18]} 19. N3a4 {[%emt 0:03:13]} 1/2-1/2

[Event "Nordic Youth-ch A 2019"]
[Site "Borgarnes"]
[Date "2019.02.16"]
[Round "4.6"]
[White "Sorensen, Hampus"]
[Black "Tryggestad, Andreas Garberg"]
[Result "1/2-1/2"]
[ECO "D90"]
[WhiteElo "2289"]
[BlackElo "2351"]
[Annotator "NA"]
[PlyCount "104"]
[EventDate "2019.02.03"]
[EventType "swiss"]
[EventCountry "ISL"]
[SourceTitle "playchess.com"]
[Source "ChessBase"]
[SourceQuality "1"]
[TimeControl "5400+30"]

1. d4 {[%emt 0:00:11]} Nf6 {[%emt 0:00:00]} 2. c4 {[%emt 0:00:42]} g6 {[%emt 0:00:00]} 3. Nc3 {[%emt 0:00:26]} d5 {[%emt 0:00:00]} 4. Nf3 {[%emt 0:00:05]} Bg7 {[%emt 0:00:00]} 5. h4 {[%emt 0:00:14] D90: Grünfeld: 4 Nf3 Bg7 sidelines} (5. Qb3 dxc4 6. Qxc4 O-O 7. e4 Nc6 8. Be2 e5 9. d5 Nd4 10. Nxd4 exd4 11. Qxd4 c6 12. Qc4 b5 13. Qxc6 Bd7 14. Qd6 Re8 15. Bg5 Rb8 16. a3 {½-½ (31) Giri,A (2783)-Mamedyarov,S (2817) Wijk aan Zee 2019}) 5... dxc4 {[%emt 0:02:42]} 6. e4 {[%emt 0:00:56]} c5 {[%emt 0:00:06]} 7. d5 {[%emt 0:01:45]} b5 {[%emt 0:00:02]} 8. h5 {[%emt 0:02:03]} O-O {[%emt 0:09:50]} 9. hxg6 {[%emt 0:01:06]} hxg6 {[%emt 0:00:05]} 10. e5 {[%emt 0:18:50]} Ng4 {[%emt 0:00:40]} 11. Bf4 $146 {[%emt 0:16:02]} ({Predecessor:} 11. d6 e6 12. Nxb5 Nc6 {1-0 (25) Song,M (2413)-Krykun,Y (2242) Khanty-Mansiysk 2016}) 11... Qa5 {[%emt 0:04:23]} 12. Qd2 {[%emt 0:02:31]} Na6 {[%emt 0:00:23]} 13. Rc1 {[%emt 0:05:45]} Rd8 {[%emt 0:12:16]} 14. a4 {[%emt 0:06:42]} b4 {[%emt 0:16:10]} 15. Nd1 {[%emt 0:00:47]} c3 {[%emt 0:02:19]} 16. bxc3 {[%emt 0:01:13]} bxc3 {[%emt 0:08:33]} 17. Nxc3 {[%emt 0:05:31]} Nb4 {[%emt 0:00:02]} 18. Bb5 {[%emt 0:03:03]} Bb7 {[%emt 0:10:36]} 19. Rh4 {[%emt 0:09:48]} Bxd5 {[%emt 0:00:14]} 20. Nxd5 {[%emt 0:01:20]} Rxd5 {[%emt 0:00:01]} 21. Qc3 {[%emt 0:00:07]} Nxe5 {[%emt 0:15:40]} 22. Bxe5 {[%emt 0:00:28]} Rxe5+ {[%emt 0:00:27]} 23. Nxe5 {[%emt 0:00:34]} Bxe5 {[%emt 0:00:02]} 24. Qf3 {[%emt 0:02:25]} Rd8 {[%emt 0:00:12]} 25. Kf1 {[%emt 0:00:52]} Bf6 {[%emt 0:01:59]} 26. Re4 {[%emt 0:01:56]} Na2 {[%emt 0:00:52]} 27. Rxc5 {[%emt 0:04:53]} a6 {[%emt 0:02:05]} 28. Qb3 {[%emt 0:06:23]} axb5 29. Qxa2 {[%emt 0:00:13]} Rd1+ {[%emt 0:02:55]} 30. Ke2 {[%emt 0:00:01]} Re1+ {[%emt 0:04:55]} 31. Kf3 {[%emt 0:00:20]} Rxe4 {[%emt 0:00:22]} 32. Rc8+ {[%emt 0:00:09]} Kg7 {[%emt 0:00:01]} 33. Kxe4 {[%emt 0:00:08]} bxa4 {[%emt 0:00:20]} 34. Qd5 {[%emt 0:01:34]} Qa6 {[%emt 0:02:23]} 35. Qc4 {[%emt 0:02:13]} Qb7+ {[%emt 0:00:10]} 36. Qc6 {[%emt 0:00:16]} Qb1+ {[%emt 0:01:14]} 37. Ke3 $2 {[%emt 0:00:54]} (37. Qc2 Qb7+) 37... a3 {[%emt 0:01:03]} 38. Qe8 {[%emt 0:00:51]} Qb6+ {[%emt 0:01:23]} 39. Kd2 {[%emt 0:00:51]} Qxf2+ {[%emt 0:02:22]} 40. Kd1 {[%emt 0:00:01]} Qd4+ {[%emt 0:01:18]} 41. Kc2 {[%emt 0:02:17]} Qb2+ {[%emt 0:00:01]} 42. Kd1 {[%emt 0:02:06]} Qb3+ {[%emt 0:00:01]} 43. Kd2 {[%emt 0:00:11]} Bg5+ {[%emt 0:01:19]} 44. Ke2 {[%emt 0:00:42] [#]} Qe3+ $1 {[%emt 0:00:20]} 45. Kf1 {[%emt 0:00:02]} Qd3+ {[%emt 0:01:19]} 46. Kg1 {[%emt 0:02:23]} Be3+ {[%emt 0:00:24]} 47. Kh2 {[%emt 0:01:03] [#]} Bf4+ $2 {[%emt 0:00:14]} ({Black should try} 47... Kf6 $1 $19 48. Qh8+ Ke6) 48. Kg1 {[%emt 0:00:01]} Be3+ {[%emt 0:01:21]} (48... Kf6 49. Qc6+ Kg5) 49. Kh2 {[%emt 0:00:02]} Bf4+ {[%emt 0:00:26]} 50. Kg1 {[%emt 0:00:01]} Qd1+ $19 {[%emt 0:00:49]} 51. Kf2 {[%emt 0:00:02]} Qd2+ {[%emt 0:00:04]} 52. Kf1 {[%emt 0:00:15]} Qd3+ 1/2-1/2

[Event "Nordic Youth-ch A 2019"]
[Site "Borgarnes"]
[Date "2019.02.16"]
[Round "4.7"]
[White "Holm, Filip"]
[Black "Stefansson, Vignir Vatnar"]
[Result "0-1"]
[ECO "B06"]
[WhiteElo "1960"]
[BlackElo "2263"]
[Annotator "NA"]
[PlyCount "42"]
[EventDate "2019.02.03"]
[EventType "swiss"]
[EventCountry "ISL"]
[SourceTitle "playchess.com"]
[Source "ChessBase"]
[SourceQuality "1"]
[TimeControl "5400+30"]

1. e4 g6 {[%emt 0:00:00]} 2. d4 {[%emt 0:04:52]} Bg7 {[%emt 0:00:00]} 3. c4 {[%emt 0:03:18]} d6 {[%emt 0:02:24]} 4. Nc3 {[%emt 0:00:17]} Nf6 {[%emt 0:02:03]} 5. Bd3 {[%emt 0:00:10]} e5 {[%emt 0:00:33]} 6. d5 {[%emt 0:00:25]} O-O {[%emt 0:00:43]} 7. b4 a5 {[%emt 0:02:21]} 8. bxa5 {[%emt 0:02:26]} Na6 {[%emt 0:01:14]} 9. Nge2 {[%emt 0:04:42]} Nh5 {[%emt 0:01:33]} 10. Be3 {[%emt 0:01:28]} f5 11. f3 {[%emt 0:00:30]} Nf4 {[%emt 0:02:01]} 12. O-O {[%emt 0:02:10]} Qg5 {[%emt 0:02:40]} 13. g3 {[%emt 0:02:47]} Nh3+ {[%emt 0:00:15]} 14. Kh1 {[%emt 0:00:10]} Qxe3 15. Kg2 {[%emt 0:03:18]} Ng5 {[%emt 0:00:26]} 16. Nc1 {[%emt 0:05:04]} fxe4 {[%emt 0:00:14]} 17. Nxe4 {[%emt 0:00:44]} Bh3+ {[%emt 0:00:07]} 18. Kh1 {[%emt 0:01:29]} Nxe4 {[%emt 0:00:09]} 19. fxe4 {[%emt 0:01:00]} Bxf1 {[%emt 0:00:40]} 20. Bxf1 {[%emt 0:00:15]} Qxe4+ {[%emt 0:00:11]} 21. Bg2 {[%emt 0:00:05]} Qd4 {[%emt 0:00:06]} 0-1